[Event "3rd FIDE WCCC Rapid U12 2019"]
[Site "Minsk"]
[Date "2019.08.17"]
[Round "7.2"]
[White "Brozka, Karel"]
[Black "Pidluznij, Gleb"]
[Result "0-1"]
[ECO "A48"]
[WhiteElo "1952"]
[BlackElo "1947"]
[Annotator "NA"]
[PlyCount "174"]
[EventDate "2019.08.16"]
[EventType "swiss"]
[EventCountry "BLR"]
[SourceTitle "playchess.com"]
[Source "ChessBase"]
[SourceQuality "1"]
[TimeControl "600+5"]

1. d4 {[%emt 0:00:00]} Nf6 {[%emt 0:00:00]} 2. Nf3 {[%emt 0:00:00]} g6 {[%emt 0:00:00]} 3. c4 {[%emt 0:00:15]} Bg7 {[%emt 0:00:01]} 4. Nc3 {[%emt 0:00:02]} O-O {[%emt 0:00:02]} 5. Bg5 {[%emt 0:00:07]} d6 {[%emt 0:00:11]} 6. e3 {[%emt 0:00:04]} c5 {[%emt 0:00:45]} 7. Be2 {[%emt 0:00:31]} Nc6 {[%emt 0:00:17]} 8. O-O {[%emt 0:00:31]} h6 {[%emt 0:00:03]} 9. Bh4 {[%emt 0:00:32]} g5 {[%emt 0:00:12]} 10. Bg3 {[%emt 0:00:15]} Nh5 {[%emt 0:00:06]} 11. d5 {[%emt 0:00:47]} Nxg3 {[%emt 0:00:08]} 12. hxg3 {[%emt 0:00:05]} Ne5 {[%emt 0:00:06]} 13. Nxe5 {[%emt 0:00:06]} Bxe5 {[%emt 0:00:02]} 14. f4 {[%emt 0:00:15]} gxf4 {[%emt 0:02:55]} 15. gxf4 {[%emt 0:00:18]} Bg7 {[%emt 0:00:05]} 16. Rf3 {[%emt 0:01:15]} f5 {[%emt 0:00:40]} 17. Rg3 {[%emt 0:00:50]} Kh7 {[%emt 0:01:03]} 18. Bd3 {[%emt 0:00:32]} Bd7 {[%emt 0:00:40]} 19. Qe2 {[%emt 0:01:00]} Bxc3 {[%emt 0:02:13]} 20. bxc3 {[%emt 0:00:08]} Rg8 {[%emt 0:01:13]} 21. Rxg8 {[%emt 0:01:32]} Qxg8 {[%emt 0:00:02]} 22. e4 {[%emt 0:00:03]} Qg6 {[%emt 0:00:17]} 23. e5 {[%emt 0:00:26]} Rg8 {[%emt 0:00:15]} 24. Rb1 {[%emt 0:01:14]} b6 {[%emt 0:00:02]} 25. Rb2 {[%emt 0:00:01]} h5 {[%emt 0:00:27]} 26. Qe3 {[%emt 0:00:49]} h4 {[%emt 0:00:07]} 27. exd6 {[%emt 0:00:06]} exd6 {[%emt 0:00:03]} 28. Qe7+ {[%emt 0:00:03]} Rg7 {[%emt 0:00:08]} 29. Qxh4+ {[%emt 0:00:01]} Kg8 {[%emt 0:00:01]} 30. Re2 {[%emt 0:00:22]} Rf7 {[%emt 0:00:12]} 31. Qf2 {[%emt 0:00:15]} Qf6 {[%emt 0:00:03]} 32. Qe1 {[%emt 0:00:05]} Rg7 {[%emt 0:00:03]} 33. Rf2 {[%emt 0:00:07]} Rg3 {[%emt 0:00:06]} 34. Rf3 {[%emt 0:00:03]} Rxf3 {[%emt 0:00:04]} 35. gxf3 {[%emt 0:00:01]} Qg7+ {[%emt 0:00:09]} 36. Kf2 {[%emt 0:00:04]} Kf7 {[%emt 0:00:02]} 37. Ke2 {[%emt 0:00:12]} Qh8 {[%emt 0:00:10]} 38. Kd2 {[%emt 0:00:02]} Qh2+ {[%emt 0:00:00]} 39. Ke3 {[%emt 0:00:09]} Qh8 {[%emt 0:00:13]} 40. Qd2 {[%emt 0:00:05]} Qe8+ {[%emt 0:00:03]} 41. Kf2 {[%emt 0:00:00]} Qh8 {[%emt 0:00:01]} 42. Ke1 {[%emt 0:00:07]} Qh1+ {[%emt 0:00:01]} 43. Ke2 {[%emt 0:00:01]} Qg2+ {[%emt 0:00:03]} 44. Ke3 {[%emt 0:00:02]} Qg7 {[%emt 0:00:05]} 45. Be2 {[%emt 0:00:10]} Qf6 {[%emt 0:00:04]} 46. Kd3 {[%emt 0:00:02]} Qh4 {[%emt 0:00:11]} 47. Kc2 {[%emt 0:00:04]} Qf2 {[%emt 0:00:11]} 48. Bd1 {[%emt 0:00:13]} Qg3 {[%emt 0:00:07]} 49. Be2 {[%emt 0:00:03]} Ba4+ {[%emt 0:00:01]} 50. Kb2 {[%emt 0:00:06]} Qf2 {[%emt 0:00:03]} 51. a3 {[%emt 0:00:06]} Ke7 {[%emt 0:00:07]} 52. Qd3 {[%emt 0:00:02]} Kf6 {[%emt 0:00:09]} 53. Qd2 {[%emt 0:00:07]} a6 {[%emt 0:00:03]} 54. Qd3 {[%emt 0:00:06]} b5 {[%emt 0:00:04]} 55. cxb5 {[%emt 0:00:04]} axb5 {[%emt 0:00:07]} 56. Qd2 {[%emt 0:00:06]} Kf7 {[%emt 0:00:06]} 57. Qd3 {[%emt 0:00:03]} Kf6 {[%emt 0:00:01]} 58. Qd2 {[%emt 0:00:01]} Kf7 {[%emt 0:00:03]} 59. Qd3 {[%emt 0:00:01]} Kf6 {[%emt 0:00:00]} 60. Qd2 {[%emt 0:00:02]} b4 {[%emt 0:00:06]} 61. axb4 {[%emt 0:00:10]} cxb4 {[%emt 0:00:11]} 62. cxb4 {[%emt 0:00:02]} Bb5 {[%emt 0:00:04]} 63. Qc3+ {[%emt 0:00:05]} Kg6 {[%emt 0:00:01]} 64. Qh8 {[%emt 0:00:17]} Qxe2+ {[%emt 0:00:01]} 65. Kc1 {[%emt 0:00:02]} Qc4+ {[%emt 0:00:05]} 66. Kd2 {[%emt 0:00:08]} Qxd5+ {[%emt 0:00:04]} 67. Ke1 {[%emt 0:00:00]} Qe6+ {[%emt 0:00:03]} 68. Kd2 {[%emt 0:00:07]} Qe2+ {[%emt 0:00:02]} 69. Kc1 {[%emt 0:00:02]} Qe3+ {[%emt 0:00:02]} 70. Kb2 {[%emt 0:00:03]} Qf2+ {[%emt 0:00:09]} 71. Kc1 {[%emt 0:00:05]} Qe1+ {[%emt 0:00:07]} 72. Kc2 {[%emt 0:00:13]} Ba4+ {[%emt 0:00:07]} 73. Kb2 {[%emt 0:00:05]} Qxb4+ {[%emt 0:00:02]} 74. Kc1 {[%emt 0:00:01]} Qe1+ {[%emt 0:00:03]} 75. Kb2 {[%emt 0:00:02]} Qb4+ {[%emt 0:00:04]} 76. Ka2 {[%emt 0:00:09]} Bb3+ {[%emt 0:00:04]} 77. Kb2 {[%emt 0:00:00]} Bd5+ {[%emt 0:00:02]} 78. Ka1 {[%emt 0:00:13]} Qa3+ {[%emt 0:00:03]} 79. Kb1 {[%emt 0:00:00]} Qb4+ {[%emt 0:00:08]} 80. Ka1 {[%emt 0:00:10]} Qxf4 {[%emt 0:00:07]} 81. Qe8+ {[%emt 0:00:04]} Bf7 {[%emt 0:00:01]} 82. Qc6 {[%emt 0:00:05]} Qe5+ {[%emt 0:00:07]} 83. Kb1 {[%emt 0:00:02]} Qd5 {[%emt 0:00:04]} 84. Qc7 {[%emt 0:00:07]} Qc5 {[%emt 0:00:07]} 85. Qe7 {[%emt 0:00:03]} Qg1+ {[%emt 0:00:04]} 86. Kb2 {[%emt 0:00:05]} Qg5 {[%emt 0:00:05]} 87. Qxd6+ {[%emt 0:00:02]} Qf6+ 0-1

[Event "3rd FIDE WCCC Rapid U12 2019"]
[Site "Minsk"]
[Date "2019.08.17"]
[Round "7.3"]
[White "Chyndygyr, Tamerlan"]
[Black "Sidletskyi, Ivan"]
[Result "1-0"]
[ECO "E73"]
[WhiteElo "1984"]
[BlackElo "1986"]
[Annotator "NA"]
[PlyCount "101"]
[EventDate "2019.08.16"]
[EventType "swiss"]
[EventCountry "BLR"]
[SourceTitle "playchess.com"]
[Source "ChessBase"]
[SourceQuality "1"]
[TimeControl "600+5"]

1. d4 {[%emt 0:00:00]} Nf6 {[%emt 0:00:00]} 2. c4 {[%emt 0:00:00]} g6 {[%emt 0:00:00]} 3. Nc3 {[%emt 0:00:00]} Bg7 {[%emt 0:00:02]} 4. e4 {[%emt 0:00:01]} d6 {[%emt 0:00:01]} 5. Be2 {[%emt 0:00:02]} O-O {[%emt 0:00:04]} 6. Bg5 {[%emt 0:00:02]} h6 {[%emt 0:00:07]} 7. Bf4 {[%emt 0:00:01]} Nbd7 {[%emt 0:00:59]} 8. Qd2 {[%emt 0:00:02]} Kh7 {[%emt 0:00:10]} 9. Nf3 {[%emt 0:00:02]} c6 {[%emt 0:00:56]} 10. O-O {[%emt 0:00:05]} Nh5 {[%emt 0:00:16]} 11. Be3 {[%emt 0:00:03]} e5 {[%emt 0:00:07]} 12. dxe5 {[%emt 0:00:14]} dxe5 {[%emt 0:00:01]} 13. Qd6 {[%emt 0:00:11]} Re8 {[%emt 0:00:38]} 14. c5 {[%emt 0:00:21]} Bf8 {[%emt 0:00:07]} 15. Qd2 {[%emt 0:00:12]} Nhf6 {[%emt 0:00:41]} 16. Bc4 {[%emt 0:00:15]} Qe7 {[%emt 0:00:47]} 17. h3 {[%emt 0:00:04]} Nxc5 {[%emt 0:01:00]} 18. Bxc5 {[%emt 0:00:09]} Qxc5 {[%emt 0:00:01]} 19. Bxf7 {[%emt 0:00:02]} Re7 {[%emt 0:00:01]} 20. Bb3 {[%emt 0:00:19]} b5 {[%emt 0:00:18]} 21. Rfd1 {[%emt 0:00:27]} b4 {[%emt 0:00:47]} 22. Na4 {[%emt 0:00:02]} Qb5 {[%emt 0:00:28]} 23. Qe3 {[%emt 0:00:21]} Be6 24. Rac1 {[%emt 0:00:13]} Bxb3 {[%emt 0:00:42]} 25. axb3 {[%emt 0:00:04]} Rd7 {[%emt 0:00:38]} 26. Rxd7+ Nxd7 {[%emt 0:00:01]} 27. Rd1 {[%emt 0:00:05]} Rd8 {[%emt 0:00:09]} 28. Qxa7 {[%emt 0:00:04]} c5 {[%emt 0:00:42]} 29. Nxe5 {[%emt 0:00:31]} Bg7 {[%emt 0:00:22]} 30. Nxd7 {[%emt 0:00:31]} Qc6 31. Nf8+ {[%emt 0:00:15]} Rxf8 {[%emt 0:00:21]} 32. Nxc5 {[%emt 0:00:49]} Ra8 {[%emt 0:00:32]} 33. Qe7 {[%emt 0:00:06]} Re8 {[%emt 0:00:11]} 34. Qd6 {[%emt 0:00:02]} Qxd6 {[%emt 0:00:18]} 35. Rxd6 {[%emt 0:00:03]} Bxb2 {[%emt 0:00:06]} 36. f4 {[%emt 0:00:50]} Bc1 {[%emt 0:00:22]} 37. Re6 {[%emt 0:01:28]} Rd8 {[%emt 0:00:35]} 38. Re7+ {[%emt 0:00:02]} Kg8 {[%emt 0:00:03]} 39. Ne6 {[%emt 0:00:03]} Rd3 {[%emt 0:00:11]} 40. Rg7+ {[%emt 0:00:19]} Kh8 {[%emt 0:00:01]} 41. Rxg6 {[%emt 0:00:01]} Rxb3 {[%emt 0:00:04]} 42. Rxh6+ {[%emt 0:00:01]} Kg8 {[%emt 0:00:02]} 43. Rg6+ {[%emt 0:00:01]} Kf7 {[%emt 0:00:10]} 44. f5 {[%emt 0:00:02]} Rb1 {[%emt 0:00:10]} 45. Kf2 {[%emt 0:00:09]} Bb2 {[%emt 0:00:11]} 46. Ng5+ {[%emt 0:00:11]} Kf8 {[%emt 0:00:10]} 47. f6 {[%emt 0:00:27]} Bd4+ {[%emt 0:00:02]} 48. Ke2 {[%emt 0:00:01]} b3 {[%emt 0:00:05]} 49. f7 {[%emt 0:00:14]} Bg7 {[%emt 0:00:11]} 50. Rb6 {[%emt 0:00:14]} b2 {[%emt 0:00:10]} 51. Rb7 {[%emt 0:00:14]} 1-0

[Event "3rd FIDE WCCC Rapid U12 2019"]
[Site "Minsk"]
[Date "2019.08.17"]
[Round "7.4"]
[White "Dang, Anh Minh"]
[Black "Saveljev, Ivan"]
[Result "0-1"]
[ECO "D79"]
[WhiteElo "1891"]
[BlackElo "2040"]
[Annotator "NA"]
[PlyCount "136"]
[EventDate "2019.08.16"]
[EventType "swiss"]
[EventCountry "BLR"]
[SourceTitle "playchess.com"]
[Source "ChessBase"]
[SourceQuality "1"]
[TimeControl "600+5"]

1. d4 {[%emt 0:00:00]} Nf6 {[%emt 0:00:00]} 2. c4 {[%emt 0:00:00]} g6 {[%emt 0:00:00]} 3. g3 {[%emt 0:00:00]} d5 {[%emt 0:00:11]} 4. Bg2 {[%emt 0:00:01]} Bg7 {[%emt 0:00:02]} 5. Nf3 {[%emt 0:00:01]} O-O {[%emt 0:00:03]} 6. O-O {[%emt 0:00:02]} c6 {[%emt 0:00:12]} 7. cxd5 {[%emt 0:01:00]} cxd5 {[%emt 0:00:24]} 8. Nc3 {[%emt 0:00:01]} Nc6 {[%emt 0:00:10]} 9. Bf4 {[%emt 0:00:05]} b6 {[%emt 0:01:55]} 10. Ne5 {[%emt 0:00:21]} Bb7 {[%emt 0:00:11]} 11. Nxc6 {[%emt 0:00:13]} Bxc6 {[%emt 0:00:08]} 12. Be5 {[%emt 0:00:01]} Qd7 {[%emt 0:00:39]} 13. Qb3 {[%emt 0:01:35]} Rfd8 {[%emt 0:00:11]} 14. Rac1 {[%emt 0:00:19]} Rac8 {[%emt 0:00:07]} 15. e3 {[%emt 0:00:13]} Ne4 {[%emt 0:03:08]} 16. Nxe4 {[%emt 0:02:51]} dxe4 {[%emt 0:00:04]} 17. Bxg7 {[%emt 0:00:10]} Kxg7 {[%emt 0:00:02]} 18. Qa3 {[%emt 0:00:46]} Bd5 {[%emt 0:00:19]} 19. b3 {[%emt 0:00:22]} e6 {[%emt 0:00:24]} 20. Rfd1 {[%emt 0:00:38]} a5 {[%emt 0:01:09]} 21. Bf1 {[%emt 0:00:04]} a4 {[%emt 0:00:32]} 22. b4 {[%emt 0:02:05]} h5 {[%emt 0:01:09]} 23. b5 {[%emt 0:00:50]} h4 {[%emt 0:00:10]} 24. Qb2 {[%emt 0:00:08]} a3 {[%emt 0:00:06]} 25. Qxa3 {[%emt 0:00:11]} Ra8 {[%emt 0:00:00]} 26. Qc3 {[%emt 0:00:05]} Rdc8 {[%emt 0:00:19]} 27. Qb4 {[%emt 0:00:04]} Rxa2 28. Qe1 {[%emt 0:00:06]} hxg3 {[%emt 0:00:23]} 29. hxg3 {[%emt 0:00:02]} Raa8 30. Rxc8 {[%emt 0:00:05]} Rxc8 {[%emt 0:00:08]} 31. Rc1 {[%emt 0:00:00]} Qb7 {[%emt 0:00:17]} 32. Rc3 {[%emt 0:00:02]} Qa8 33. Qc1 {[%emt 0:00:04]} Bb7 {[%emt 0:00:12]} 34. Bg2 {[%emt 0:00:17]} Qb8 {[%emt 0:00:07]} 35. Rxc8 {[%emt 0:00:01]} Qxc8 36. Qxc8 {[%emt 0:00:01]} Bxc8 {[%emt 0:00:04]} 37. Bxe4 {[%emt 0:00:02]} Kf8 {[%emt 0:00:01]} 38. Bc6 {[%emt 0:00:03]} Ke7 {[%emt 0:00:00]} 39. Kf1 {[%emt 0:00:02]} Kd6 {[%emt 0:00:04]} 40. Ke2 {[%emt 0:00:01]} e5 {[%emt 0:00:05]} 41. dxe5+ {[%emt 0:00:04]} Kxe5 {[%emt 0:00:02]} 42. f4+ {[%emt 0:00:05]} Kd6 {[%emt 0:00:00]} 43. Kd3 {[%emt 0:00:02]} Kc5 {[%emt 0:00:03]} 44. Ke4 {[%emt 0:00:02]} f6 {[%emt 0:00:02]} 45. Kd3 {[%emt 0:00:08]} Be6 {[%emt 0:00:01]} 46. e4 {[%emt 0:00:01]} Bc4+ {[%emt 0:00:03]} 47. Ke3 {[%emt 0:00:05]} Bxb5 {[%emt 0:00:07]} 48. Bb7 {[%emt 0:00:04]} Bc4 {[%emt 0:00:13]} 49. e5 {[%emt 0:00:05]} fxe5 {[%emt 0:00:02]} 50. fxe5 {[%emt 0:00:00]} Be6 {[%emt 0:00:03]} 51. Be4 {[%emt 0:00:03]} g5 {[%emt 0:00:02]} 52. Kd3 {[%emt 0:00:13]} b5 {[%emt 0:00:01]} 53. Kc3 {[%emt 0:00:17]} b4+ {[%emt 0:00:02]} 54. Kd3 {[%emt 0:00:01]} Ba2 {[%emt 0:00:13]} 55. Bf3 {[%emt 0:00:23]} Bc4+ {[%emt 0:00:13]} 56. Kc2 {[%emt 0:00:02]} Kd4 {[%emt 0:00:02]} 57. e6 {[%emt 0:00:02]} Bxe6 {[%emt 0:00:01]} 58. Kb2 {[%emt 0:00:03]} Ke3 {[%emt 0:00:02]} 59. Bd1 {[%emt 0:00:01]} Kf2 {[%emt 0:00:02]} 60. g4 {[%emt 0:00:01]} Kg3 {[%emt 0:00:02]} 61. Be2 {[%emt 0:00:01]} Bxg4 {[%emt 0:00:02]} 62. Bc4 {[%emt 0:00:01]} Bd1 {[%emt 0:00:04]} 63. Kc1 {[%emt 0:00:01]} Ba4 {[%emt 0:00:02]} 64. Kd2 {[%emt 0:00:01]} g4 {[%emt 0:00:02]} 65. Ke3 {[%emt 0:00:01]} Bc2 {[%emt 0:00:11]} 66. Kd2 {[%emt 0:00:02]} b3 {[%emt 0:00:03]} 67. Kc3 {[%emt 0:00:10]} Kf2 {[%emt 0:00:04]} 68. Bd5 {[%emt 0:00:01]} g3 {[%emt 0:00:02]} 0-1

[Event "3rd FIDE WCCC Rapid U12 2019"]
[Site "Minsk"]
[Date "2019.08.17"]
[Round "7.5"]
[White "Siniukovich, Ivan"]
[Black "Ponomarev, Vsevolod"]
[Result "1-0"]
[ECO "B90"]
[WhiteElo "1685"]
[BlackElo "1980"]
[Annotator "NA"]
[PlyCount "59"]
[EventDate "2019.08.16"]
[EventType "swiss"]
[EventCountry "BLR"]
[SourceTitle "playchess.com"]
[Source "ChessBase"]
[SourceQuality "1"]
[TimeControl "600+5"]

1. e4 {[%emt 0:00:00]} c5 {[%emt 0:00:00]} 2. Nf3 {[%emt 0:00:00]} d6 {[%emt 0:00:00]} 3. d4 {[%emt 0:00:00]} cxd4 {[%emt 0:00:00]} 4. Nxd4 {[%emt 0:00:00]} Nf6 {[%emt 0:00:03]} 5. Nc3 {[%emt 0:00:00]} a6 {[%emt 0:00:01]} 6. a4 {[%emt 0:00:22]} e6 {[%emt 0:00:05]} 7. Be3 {[%emt 0:00:03]} Be7 {[%emt 0:00:04]} 8. Be2 {[%emt 0:00:14]} Nc6 {[%emt 0:00:18]} 9. O-O {[%emt 0:00:05]} O-O {[%emt 0:00:02]} 10. f4 {[%emt 0:00:31]} Qc7 {[%emt 0:00:10]} 11. Qe1 {[%emt 0:01:13]} Na5 {[%emt 0:00:46]} 12. Rd1 {[%emt 0:01:21]} Nc4 {[%emt 0:00:24]} 13. Bxc4 {[%emt 0:00:03]} Qxc4 {[%emt 0:00:02]} 14. Qg3 {[%emt 0:01:14]} Kh8 {[%emt 0:00:49]} 15. e5 {[%emt 0:01:08]} dxe5 {[%emt 0:00:36]} 16. fxe5 {[%emt 0:00:01]} Ng8 {[%emt 0:00:38]} 17. Rf4 {[%emt 0:00:41]} Qc7 {[%emt 0:00:22]} 18. Rg4 {[%emt 0:00:44]} g6 {[%emt 0:00:01]} 19. Rf1 {[%emt 0:01:05]} Bd7 {[%emt 0:00:19]} 20. Ne4 {[%emt 0:00:42]} h5 {[%emt 0:01:26]} 21. Rg5 {[%emt 0:01:18]} Bxg5 {[%emt 0:00:47]} 22. Qxg5 {[%emt 0:00:02]} Qd8 {[%emt 0:02:23]} 23. Nf6 {[%emt 0:00:05]} Qe7 {[%emt 0:00:27]} 24. g4 {[%emt 0:00:17]} Rfd8 {[%emt 0:00:29]} 25. gxh5 {[%emt 0:00:15]} Qf8 {[%emt 0:00:48]} 26. hxg6 {[%emt 0:00:08]} Nxf6 {[%emt 0:00:21]} 27. Rxf6 {[%emt 0:00:27]} Qg7 {[%emt 0:00:30]} 28. Rxf7 {[%emt 0:00:06]} Qxg6 {[%emt 0:00:11]} 29. Qxg6 Rg8 30. Rh7# {[%emt 0:00:05]} 1-0

[Event "3rd FIDE WCCC Rapid U12 2019"]
[Site "Minsk"]
[Date "2019.08.17"]
[Round "7.6"]
[White "Shinkarov, Artem"]
[Black "Khubukshanov, Erdem"]
[Result "0-1"]
[ECO "D45"]
[WhiteElo "1798"]
[BlackElo "2257"]
[Annotator "ChessBase"]
[PlyCount "108"]
[EventDate "2019.08.16"]
[EventType "swiss"]
[EventCountry "BLR"]
[SourceTitle "playchess.com"]
[Source "ChessBase"]
[SourceQuality "1"]
[TimeControl "600+5"]

1. d4 {[%emt 0:00:00]} d5 {[%emt 0:00:00]} 2. c4 {[%emt 0:00:00]} e6 {[%emt 0:00:00]} 3. Nc3 {[%emt 0:00:00]} c6 {[%emt 0:00:00]} 4. e3 {[%emt 0:00:00]} Nf6 {[%emt 0:00:00]} 5. Nf3 {[%emt 0:00:00]} Nbd7 {[%emt 0:00:00]} 6. g3 {[%emt 0:00:08]} dxc4 {[%emt 0:00:11]} 7. Bxc4 {[%emt 0:00:01]} Be7 {[%emt 0:00:09]} 8. Bf1 {[%emt 0:00:02]} O-O {[%emt 0:00:13]} 9. Bg2 {[%emt 0:00:01]} b6 {[%emt 0:00:03]} 10. O-O {[%emt 0:00:13]} Bb7 {[%emt 0:00:01]} 11. Qe2 {[%emt 0:00:15]} c5 {[%emt 0:00:24]} 12. Rd1 {[%emt 0:00:10]} Qc7 {[%emt 0:00:08]} 13. e4 {[%emt 0:00:29]} cxd4 {[%emt 0:00:33]} 14. Nxd4 {[%emt 0:00:01]} a6 {[%emt 0:00:01]} 15. Be3 {[%emt 0:01:06]} Rad8 {[%emt 0:00:57]} 16. Rac1 {[%emt 0:00:16]} Qb8 {[%emt 0:00:01]} 17. Nb3 {[%emt 0:01:07]} Qa8 {[%emt 0:00:31]} 18. f3 {[%emt 0:00:11]} Rc8 {[%emt 0:00:37]} 19. Na4 {[%emt 0:00:48]} b5 {[%emt 0:00:03]} 20. Nac5 {[%emt 0:00:21]} Nxc5 {[%emt 0:00:57]} 21. Nxc5 {[%emt 0:00:06]} Bc6 {[%emt 0:00:09]} 22. Bh3 {[%emt 0:01:53]} Kh8 {[%emt 0:00:40]} 23. b4 {[%emt 0:00:45]} a5 {[%emt 0:00:10]} 24. bxa5 {[%emt 0:00:35]} Qxa5 {[%emt 0:00:17]} 25. Nb3 {[%emt 0:00:02]} Qa8 {[%emt 0:00:49]} 26. Nd4 {[%emt 0:00:19]} b4 {[%emt 0:01:00]} 27. Bf1 {[%emt 0:01:20]} Ba4 {[%emt 0:00:10]} 28. Nb3 {[%emt 0:00:18]} Nd7 {[%emt 0:01:50]} 29. Qf2 {[%emt 0:00:46]} Rfd8 {[%emt 0:01:13]} 30. Rxc8 {[%emt 0:01:06]} Qxc8 {[%emt 0:00:07]} 31. Rc1 {[%emt 0:00:03]} Qa8 {[%emt 0:00:02]} 32. Qc2 {[%emt 0:00:09]} Ne5 {[%emt 0:00:06]} 33. Be2 {[%emt 0:00:04]} h6 {[%emt 0:00:28]} 34. f4 {[%emt 0:00:01]} Nd7 {[%emt 0:00:01]} 35. Bf3 {[%emt 0:00:08]} e5 {[%emt 0:00:06]} 36. Bg2 {[%emt 0:00:07]} Qa6 {[%emt 0:00:29]} 37. Qc4 {[%emt 0:00:04]} Qxc4 {[%emt 0:00:14]} 38. Rxc4 {[%emt 0:00:01]} exf4 {[%emt 0:00:03]} 39. gxf4 {[%emt 0:00:03]} Nf6 {[%emt 0:00:06]} 40. Rc7 {[%emt 0:00:11]} Ng4 {[%emt 0:00:11]} 41. Rxe7 {[%emt 0:00:07]} Rd1+ {[%emt 0:00:01]} 42. Bf1 {[%emt 0:00:05]} Nxe3 {[%emt 0:00:01]} 43. Kf2 {[%emt 0:00:03]} Nxf1 {[%emt 0:00:05]} 44. Rxf7 {[%emt 0:00:02]} Nd2 {[%emt 0:00:08]} 45. Rf8+ {[%emt 0:00:08]} Kh7 {[%emt 0:00:01]} 46. Rb8 {[%emt 0:00:04]} Nxe4+ {[%emt 0:00:04]} 47. Ke3 {[%emt 0:00:02]} Re1+ {[%emt 0:00:06]} 48. Kf3 {[%emt 0:00:03]} Bc6 {[%emt 0:00:04]} 49. Nd4 {[%emt 0:00:11]} Bd5 {[%emt 0:00:01]} 50. Kg4 {[%emt 0:00:05]} Rg1+ {[%emt 0:00:03]} 51. Kf5 {[%emt 0:00:02]} Nf6 {[%emt 0:00:06]} 52. Rxb4 {[%emt 0:00:09]} Re1 {[%emt 0:00:05]} 53. a4 {[%emt 0:00:08]} Re7 {[%emt 0:00:06]} 54. Rb6 {[%emt 0:00:04]} Be4# {[%emt 0:00:02]} 0-1

[Event "3rd FIDE WCCC Rapid U12 2019"]
[Site "Minsk"]
[Date "2019.08.17"]
[Round "8.1"]
[White "Pidluznij, Gleb"]
[Black "Cherniaiev, Tykhon"]
[Result "1/2-1/2"]
[ECO "D20"]
[WhiteElo "1947"]
[BlackElo "2112"]
[Annotator "ChessBase"]
[PlyCount "64"]
[EventDate "2019.08.16"]
[EventType "swiss"]
[EventCountry "BLR"]
[SourceTitle "playchess.com"]
[Source "ChessBase"]
[SourceQuality "1"]
[TimeControl "600+5"]

1. d4 {[%emt 0:00:00]} d5 {[%emt 0:00:00]} 2. c4 {[%emt 0:00:00]} dxc4 {[%emt 0:00:00]} 3. e3 {[%emt 0:00:00]} Nf6 {[%emt 0:00:01]} 4. Bxc4 {[%emt 0:00:02]} e6 {[%emt 0:00:10]} 5. Nf3 {[%emt 0:00:13]} a6 {[%emt 0:00:03]} 6. a4 {[%emt 0:00:18]} b6 {[%emt 0:00:24]} 7. O-O {[%emt 0:00:06]} Bb7 {[%emt 0:00:03]} 8. Nc3 {[%emt 0:00:15]} Nbd7 {[%emt 0:00:05]} 9. Qe2 {[%emt 0:00:10]} c5 {[%emt 0:00:18]} 10. Rd1 {[%emt 0:00:21]} cxd4 {[%emt 0:00:11]} 11. exd4 {[%emt 0:00:52]} Bd6 {[%emt 0:01:15]} 12. Ng5 {[%emt 0:01:27]} Qe7 {[%emt 0:00:11]} 13. d5 {[%emt 0:01:20]} e5 {[%emt 0:00:31]} 14. Nge4 {[%emt 0:00:30]} Nxe4 {[%emt 0:00:39]} 15. Nxe4 {[%emt 0:00:20]} O-O {[%emt 0:00:09]} 16. Nxd6 {[%emt 0:00:09]} Qxd6 {[%emt 0:00:02]} 17. b3 {[%emt 0:00:06]} Rfe8 {[%emt 0:01:01]} 18. Ba3 {[%emt 0:00:20]} Qg6 {[%emt 0:00:27]} 19. Rac1 {[%emt 0:01:16]} Nf6 {[%emt 0:00:15]} 20. f3 {[%emt 0:00:37]} Nh5 {[%emt 0:00:57]} 21. Qe4 {[%emt 0:01:13]} f5 {[%emt 0:00:21]} 22. d6+ {[%emt 0:00:12]} Kh8 {[%emt 0:00:02]} 23. Qxb7 {[%emt 0:00:02]} Nf4 {[%emt 0:00:03]} 24. g3 {[%emt 0:00:46]} e4 {[%emt 0:00:14]} 25. Bf7 {[%emt 0:00:42]} Qg5 {[%emt 0:00:05]} 26. Bxe8 {[%emt 0:00:23]} Nh3+ {[%emt 0:00:24]} 27. Kh1 {[%emt 0:00:16]} Qe3 {[%emt 0:00:02]} 28. Rd2 {[%emt 0:00:13]} Qxf3+ {[%emt 0:00:47]} 29. Rg2 {[%emt 0:00:01]} Nf2+ {[%emt 0:00:01]} 30. Kg1 {[%emt 0:00:03]} Nh3+ {[%emt 0:00:01]} 31. Kh1 {[%emt 0:00:01]} Nf2+ {[%emt 0:00:01]} 32. Kg1 {[%emt 0:00:01]} Nh3+ {[%emt 0:00:02]} 1/2-1/2